[Event "Early-Titled-Tuesday-Blitz-May-14-2024"]
[Site "Chess.com"]
[Date "2024.05.14"]
[Round "3"]
[White "GelmanAlexander"]
[Black "ccccvhhhj"]
[Result "1-0"]
[WhiteElo "2654"]
[BlackElo "2447"]
[TimeControl "180+1"]
[EndTime "8:30:41 PDT"]
[Termination "GelmanAlexander won on time"]

1. c4 {[%clk 0:03:00.9]} 1... e5 {[%clk 0:02:59.6]} 2. e3 {[%clk 0:03:00.7]}
2... Nf6 {[%clk 0:02:58.9]} 3. a3 {[%clk 0:03:00.5]} 3... c6 {[%clk 0:02:59]} 4.
b3 {[%clk 0:02:58.5]} 4... d5 {[%clk 0:02:59.1]} 5. Bb2 {[%clk 0:02:58.8]} 5...
Bd6 {[%clk 0:02:58]} 6. Nf3 {[%clk 0:02:57.8]} 6... Qe7 {[%clk 0:02:56.4]} 7. d4
{[%clk 0:02:57]} 7... Bg4 {[%clk 0:02:51.5]} 8. Be2 {[%clk 0:02:41.3]} 8... e4
{[%clk 0:02:47.6]} 9. Nfd2 {[%clk 0:02:40.1]} 9... Bxe2 {[%clk 0:02:46.6]} 10.
Qxe2 {[%clk 0:02:41]} 10... O-O {[%clk 0:02:43.8]} 11. Nc3 {[%clk 0:02:38.9]}
11... Nbd7 {[%clk 0:02:42.1]} 12. g4 {[%clk 0:02:38.9]} 12... Qe6 {[%clk
0:02:19]} 13. h3 {[%clk 0:02:19.4]} 13... Rfe8 {[%clk 0:02:01.6]} 14. O-O-O
{[%clk 0:02:13.6]} 14... dxc4 {[%clk 0:01:45.8]} 15. bxc4 {[%clk 0:02:04.9]}
15... h6 {[%clk 0:01:17.2]} 16. Rdg1 {[%clk 0:01:54.8]} 16... b5 {[%clk
0:01:16.7]} 17. g5 {[%clk 0:01:34.2]} 17... hxg5 {[%clk 0:01:16.5]} 18. Rxg5
{[%clk 0:01:35.1]} 18... bxc4 {[%clk 0:01:10.1]} 19. Rhg1 {[%clk 0:01:26]} 19...
Bf8 {[%clk 0:01:02.6]} 20. Nxc4 {[%clk 0:00:44]} 20... Rab8 {[%clk 0:01:00.6]}
21. h4 {[%clk 0:00:26.2]} 21... Nb6 {[%clk 0:00:44.2]} 22. Ne5 {[%clk
0:00:17.2]} 22... Nbd7 {[%clk 0:00:38.3]} 23. h5 {[%clk 0:00:16.6]} 23... Nxe5
{[%clk 0:00:36.3]} 24. dxe5 {[%clk 0:00:17.5]} 24... Nd5 {[%clk 0:00:36.7]} 25.
Nxe4 {[%clk 0:00:15]} 25... Rb3 {[%clk 0:00:06.4]} 26. Nf6+ {[%clk 0:00:10.6]}
26... Kh8 {[%clk 0:00:05.6]} 27. Qc2 {[%clk 0:00:10]} 27... Nxf6 {[%clk
0:00:04.3]} 28. exf6 {[%clk 0:00:09.3]} 28... Rxb2 {[%clk 0:00:02.6]} 29. Qxb2
{[%clk 0:00:06.8]} 29... Qxf6 {[%clk 0:00:01.6]} 30. Qxf6 {[%clk 0:00:05.1]}
30... gxf6 {[%clk 0:00:02.5]} 31. Rf5 {[%clk 0:00:05]} 31... Bxa3+ {[%clk
0:00:02]} 32. Kc2 {[%clk 0:00:04.8]} 32... Be7 {[%clk 0:00:02.9]} 33. Ra1 {[%clk
0:00:03.7]} 33... Ra8 {[%clk 0:00:03]} 34. Ra6 {[%clk 0:00:03.9]} 34... c5
{[%clk 0:00:02.7]} 35. Kc3 {[%clk 0:00:03.5]} 35... Kg7 {[%clk 0:00:03.3]} 36.
Kc4 {[%clk 0:00:04.1]} 36... Kf8 {[%clk 0:00:02]} 37. h6 {[%clk 0:00:03.9]}
37... Kg8 {[%clk 0:00:02.3]} 38. Rh5 {[%clk 0:00:02.4]} 38... Kh7 {[%clk
0:00:02.7]} 39. e4 {[%clk 0:00:03]} 39... Kg6 {[%clk 0:00:03.3]} 40. Rh1 {[%clk
0:00:03.3]} 40... Kh7 {[%clk 0:00:03.9]} 41. f4 {[%clk 0:00:03.8]} 41... Bd8
{[%clk 0:00:01.9]} 42. Kxc5 {[%clk 0:00:03.5]} 42... Bb6+ {[%clk 0:00:02.4]} 43.
Kc6 {[%clk 0:00:04]} 43... Rc8+ {[%clk 0:00:02.6]} 44. Kd7 {[%clk 0:00:04.5]}
44... Rc4 {[%clk 0:00:02.8]} 45. Ke7 {[%clk 0:00:04.2]} 45... Rxe4+ {[%clk
0:00:03.2]} 46. Kxf7 {[%clk 0:00:04.8]} 46... Rxf4 {[%clk 0:00:04.1]} 47. Ra2
{[%clk 0:00:04.3]} 47... Rc4 {[%clk 0:00:03.6]} 48. Rg2 {[%clk 0:00:04.5]} 48...
Rc7+ {[%clk 0:00:03.9]} 49. Kxf6 {[%clk 0:00:05.1]} 49... Bd4+ {[%clk
0:00:04.2]} 50. Ke6 {[%clk 0:00:05]} 50... Rb7 {[%clk 0:00:02.5]} 51. Rd2 {[%clk
0:00:04.7]} 51... Rb6+ {[%clk 0:00:00.2]} 52. Kf7 {[%clk 0:00:04.4]} 52... Be3
{[%clk 0:00:00.6]} 53. Rd7 {[%clk 0:00:04.9]} 53... Rb8 {[%clk 0:00:00.8]} 54.
Ke6+ {[%clk 0:00:05]} 54... Kh8 {[%clk 0:00:01.4]} 55. Kf5 {[%clk 0:00:05.3]}
55... Rf8+ {[%clk 0:00:01.3]} 56. Kg6 {[%clk 0:00:05.1]} 56... Bc5 {[%clk
0:00:00.5]} 57. h7 {[%clk 0:00:05.4]} 57... Re8 {[%clk 0:00:00.2]} 58. Rf1
{[%clk 0:00:05.5]} 58... Re6+ {[%clk 0:00:00.5]} 59. Rf6 {[%clk 0:00:05.8]}
59... Re8 {[%clk 0:00:00.9]} 60. Rff7 {[%clk 0:00:05.8]} 60... Be3 {[%clk
0:00:00.8]} 61. Rde7 {[%clk 0:00:04.8]} 61... Rd8 {[%clk 0:00:01.2]} 62. Rxe3
{[%clk 0:00:04.6]} 62... Rd6+ {[%clk 0:00:01.4]} 63. Rf6 {[%clk 0:00:05.1]}
63... Rd8 {[%clk 0:00:01.4]} 64. Ref3 {[%clk 0:00:04.7]} 1-0

[Event "Early-Titled-Tuesday-Blitz-May-14-2024"]
[Site "Chess.com"]
[Date "2024.05.14"]
[Round "3"]
[White "GMSrinath"]
[Black "ahkashefi2800"]
[Result "0-1"]
[WhiteElo "2832"]
[BlackElo "2606"]
[TimeControl "180+1"]
[EndTime "8:30:43 PDT"]
[Termination "ahkashefi2800 won by checkmate"]

1. e4 {[%clk 0:03:00.9]} 1... c6 {[%clk 0:02:58.5]} 2. d4 {[%clk 0:02:57.2]}
2... d5 {[%clk 0:02:58.7]} 3. exd5 {[%clk 0:02:57.9]} 3... cxd5 {[%clk
0:02:58.9]} 4. Bd3 {[%clk 0:02:58.5]} 4... Nf6 {[%clk 0:02:58.5]} 5. c3 {[%clk
0:02:58.9]} 5... Nc6 {[%clk 0:02:57.6]} 6. Bf4 {[%clk 0:02:58.9]} 6... Bg4
{[%clk 0:02:56.2]} 7. Qb3 {[%clk 0:02:59.3]} 7... Qd7 {[%clk 0:02:55.4]} 8. Nd2
{[%clk 0:02:59.5]} 8... e6 {[%clk 0:02:55.9]} 9. Ngf3 {[%clk 0:03:00.1]} 9...
Bd6 {[%clk 0:02:53.4]} 10. Bxd6 {[%clk 0:02:54.5]} 10... Qxd6 {[%clk 0:02:53.3]}
11. O-O {[%clk 0:02:55.3]} 11... O-O {[%clk 0:02:53.3]} 12. Rae1 {[%clk
0:02:54.3]} 12... Bxf3 {[%clk 0:02:51.2]} 13. Nxf3 {[%clk 0:02:54.2]} 13... Rab8
{[%clk 0:02:41.3]} 14. Ne5 {[%clk 0:02:53.8]} 14... Nd7 {[%clk 0:02:38.3]} 15.
f4 {[%clk 0:02:53.6]} 15... f5 {[%clk 0:02:33.6]} 16. Re3 {[%clk 0:02:45.2]}
16... Nf6 {[%clk 0:02:32.4]} 17. Qd1 {[%clk 0:02:42.4]} 17... Ne4 {[%clk
0:02:31.1]} 18. Bxe4 {[%clk 0:02:32.9]} 18... fxe4 {[%clk 0:02:26.9]} 19. Qh5
{[%clk 0:02:31.9]} 19... Rf5 {[%clk 0:02:24.3]} 20. Qg4 {[%clk 0:02:29.4]} 20...
Rbf8 {[%clk 0:02:22.5]} 21. Ree1 {[%clk 0:02:26.7]} 21... a6 {[%clk 0:02:20.9]}
22. g3 {[%clk 0:02:18.7]} 22... Qc7 {[%clk 0:02:15.9]} 23. Qe2 {[%clk
0:02:18.2]} 23... Qb6 {[%clk 0:02:15.7]} 24. Ng4 {[%clk 0:02:16.8]} 24... Qd8
{[%clk 0:02:06.7]} 25. Ne3 {[%clk 0:02:17]} 25... R5f7 {[%clk 0:02:06.2]} 26.
Kh1 {[%clk 0:02:17.6]} 26... Ne7 {[%clk 0:02:05.5]} 27. Ng4 {[%clk 0:02:14.6]}
27... Ng6 {[%clk 0:02:04.9]} 28. h4 {[%clk 0:02:11.8]} 28... Rf5 {[%clk
0:01:47.5]} 29. Ne3 {[%clk 0:02:09.1]} 29... R5f7 {[%clk 0:01:44.4]} 30. h5
{[%clk 0:02:07.1]} 30... Ne7 {[%clk 0:01:44.4]} 31. h6 {[%clk 0:02:06.7]} 31...
Nf5 {[%clk 0:01:43.6]} 32. Nxf5 {[%clk 0:01:52.7]} 32... exf5 {[%clk 0:01:43.2]}
33. hxg7 {[%clk 0:01:50.8]} 33... Rxg7 {[%clk 0:01:44.1]} 34. Rg1 {[%clk
0:01:50.6]} 34... Rf6 {[%clk 0:01:41.2]} 35. Rg2 {[%clk 0:01:49.4]} 35... Rfg6
{[%clk 0:01:39.6]} 36. Reg1 {[%clk 0:01:48.2]} 36... h5 {[%clk 0:01:39.6]} 37.
Rh2 {[%clk 0:01:44.8]} 37... h4 {[%clk 0:01:39.9]} 38. Qh5 {[%clk 0:01:42.5]}
38... Qd7 {[%clk 0:00:37.4]} 39. Rxh4 {[%clk 0:01:37.1]} 39... Qe6 {[%clk
0:00:28.7]} 40. g4 {[%clk 0:01:24.6]} 40... e3 {[%clk 0:00:20.7]} 41. g5 {[%clk
0:01:11.7]} 41... Qe4+ {[%clk 0:00:14.2]} 42. Kh2 {[%clk 0:01:11.8]} 42... b5
{[%clk 0:00:05.2]} 43. Rg2 {[%clk 0:00:47]} 43... Kf7 {[%clk 0:00:05.4]} 44. Kh3
{[%clk 0:00:30]} 44... Ke7 {[%clk 0:00:05.6]} 45. Qe2 {[%clk 0:00:29.8]} 45...
Kd6 {[%clk 0:00:05.4]} 46. a4 {[%clk 0:00:17.6]} 46... Kc6 {[%clk 0:00:04.8]}
47. axb5+ {[%clk 0:00:16.3]} 47... axb5 {[%clk 0:00:05.7]} 48. Qe1 {[%clk
0:00:16.7]} 48... Kb6 {[%clk 0:00:04.9]} 49. Qe2 {[%clk 0:00:12.9]} 49... Re6
{[%clk 0:00:05]} 50. Kh2 {[%clk 0:00:10.8]} 50... Ra7 {[%clk 0:00:04.3]} 51. g6
{[%clk 0:00:08.3]} 51... Rg7 {[%clk 0:00:03.9]} 52. Rh3 {[%clk 0:00:05.1]} 52...
Qxf4+ {[%clk 0:00:01.8]} 53. Kh1 {[%clk 0:00:05.5]} 53... Rexg6 {[%clk
0:00:02.7]} 54. Rxg6+ {[%clk 0:00:04.6]} 54... Rxg6 {[%clk 0:00:03.6]} 55. Qxe3
{[%clk 0:00:03]} 55... Qf1+ {[%clk 0:00:03]} 56. Kh2 {[%clk 0:00:03.9]} 56...
Qg2# {[%clk 0:00:03.3]} 0-1

[Event "Early-Titled-Tuesday-Blitz-May-14-2024"]
[Site "Chess.com"]
[Date "2024.05.14"]
[Round "3"]
[White "nabukatnezarr"]
[Black "ploxoi"]
[Result "1-0"]
[WhiteElo "2606"]
[BlackElo "2329"]
[TimeControl "180+1"]
[EndTime "8:30:43 PDT"]
[Termination "nabukatnezarr won by resignation"]

1. b3 {[%clk 0:03:00.9]} 1... d5 {[%clk 0:02:58.6]} 2. Bb2 {[%clk 0:03:00.1]}
2... a5 {[%clk 0:02:59.3]} 3. e3 {[%clk 0:02:56.5]} 3... c6 {[%clk 0:02:58.6]}
4. Nf3 {[%clk 0:02:54]} 4... a4 {[%clk 0:02:58.5]} 5. Be2 {[%clk 0:02:50.8]}
5... Nf6 {[%clk 0:02:58.9]} 6. O-O {[%clk 0:02:50.2]} 6... Bf5 {[%clk
0:02:59.1]} 7. d3 {[%clk 0:02:44]} 7... e6 {[%clk 0:02:53]} 8. Nbd2 {[%clk
0:02:43.2]} 8... h6 {[%clk 0:02:52.5]} 9. a3 {[%clk 0:02:41.6]} 9... Nbd7 {[%clk
0:02:48.6]} 10. b4 {[%clk 0:02:41.4]} 10... c5 {[%clk 0:02:30.8]} 11. b5 {[%clk
0:02:35.6]} 11... Be7 {[%clk 0:02:25.5]} 12. c4 {[%clk 0:02:30.9]} 12... O-O
{[%clk 0:02:23.2]} 13. Qc2 {[%clk 0:02:16.2]} 13... Bg6 {[%clk 0:02:18.6]} 14.
Rfd1 {[%clk 0:02:10.4]} 14... Nb6 {[%clk 0:02:15.4]} 15. Ne5 {[%clk 0:02:08.3]}
15... Bh7 {[%clk 0:02:14.2]} 16. Rac1 {[%clk 0:02:02.4]} 16... Nfd7 {[%clk
0:02:08.6]} 17. Nxd7 {[%clk 0:01:56.1]} 17... Qxd7 {[%clk 0:02:02.6]} 18. e4
{[%clk 0:01:40.9]} 18... Bg5 {[%clk 0:01:54]} 19. cxd5 {[%clk 0:01:30.1]} 19...
Rac8 {[%clk 0:01:33.1]} 20. dxe6 {[%clk 0:00:59.9]} 20... fxe6 {[%clk 0:01:34]}
21. Rb1 {[%clk 0:00:59.4]} 21... Qf7 {[%clk 0:00:55.4]} 22. Nf3 {[%clk
0:00:58.8]} 22... Bf6 {[%clk 0:00:53.9]} 23. Bxf6 {[%clk 0:00:46.3]} 23... gxf6
{[%clk 0:00:54.8]} 24. Qd2 {[%clk 0:00:45.2]} 24... Kg7 {[%clk 0:00:48.1]} 25.
Qf4 {[%clk 0:00:42.7]} 25... e5 {[%clk 0:00:45.4]} 26. Qg3+ {[%clk 0:00:31.9]}
26... Kh8 {[%clk 0:00:41.9]} 27. Qh3 {[%clk 0:00:30.7]} 27... Qg7 {[%clk
0:00:34.6]} 28. Nh4 {[%clk 0:00:29.9]} 28... Qg5 {[%clk 0:00:32.8]} 29. Bg4
{[%clk 0:00:25.9]} 29... Rcd8 {[%clk 0:00:26.6]} 30. Bf5 {[%clk 0:00:26]} 30...
Rg8 {[%clk 0:00:20.7]} 31. Bxh7 {[%clk 0:00:22.3]} 31... Kxh7 {[%clk 0:00:21.6]}
32. Qf5+ {[%clk 0:00:21.5]} 32... Qxf5 {[%clk 0:00:21.8]} 33. Nxf5 {[%clk
0:00:22.4]} 33... Rd7 {[%clk 0:00:19.9]} 34. Kf1 {[%clk 0:00:20.5]} 34... Rc8
{[%clk 0:00:17.8]} 35. Ne3 {[%clk 0:00:18.4]} 35... Kg6 {[%clk 0:00:14.3]} 36.
Ke2 {[%clk 0:00:18]} 36... Kf7 {[%clk 0:00:14.7]} 37. Rbc1 {[%clk 0:00:17]}
37... Ke6 {[%clk 0:00:14.7]} 38. Rc3 {[%clk 0:00:17.6]} 38... h5 {[%clk
0:00:07.4]} 39. Rdc1 {[%clk 0:00:18.1]} 39... Rdc7 {[%clk 0:00:08.1]} 40. Nc4
{[%clk 0:00:17.7]} 40... Nxc4 {[%clk 0:00:06]} 41. Rxc4 {[%clk 0:00:18.6]} 41...
b6 {[%clk 0:00:04.6]} 42. Rxa4 {[%clk 0:00:18.7]} 42... Kd6 {[%clk 0:00:04.9]}
43. Ra6 {[%clk 0:00:19.2]} 43... Rb8 {[%clk 0:00:04.9]} 44. a4 {[%clk
0:00:19.8]} 44... Kd7 {[%clk 0:00:04.8]} 45. Rc4 {[%clk 0:00:19.1]} 45... Ke7
{[%clk 0:00:03.9]} 46. h4 {[%clk 0:00:19.3]} 46... Rcb7 {[%clk 0:00:04.2]} 47.
g3 {[%clk 0:00:18.2]} 47... Rg8 {[%clk 0:00:04.7]} 48. Ke3 {[%clk 0:00:16.8]}
48... Rc8 {[%clk 0:00:04.8]} 49. Rc1 {[%clk 0:00:16.5]} 49... Kf7 {[%clk
0:00:04.4]} 50. Kd2 {[%clk 0:00:16.9]} 50... Ke7 {[%clk 0:00:04.8]} 51. Kc3
{[%clk 0:00:17.5]} 51... Rd8 {[%clk 0:00:05.3]} 52. Kd2 {[%clk 0:00:16.3]} 52...
Rc8 {[%clk 0:00:05.2]} 53. Rc4 {[%clk 0:00:16.8]} 53... Kf7 {[%clk 0:00:04.3]}
54. Ke3 {[%clk 0:00:17.5]} 54... Ke7 {[%clk 0:00:04.8]} 55. a5 {[%clk
0:00:17.8]} 55... bxa5 {[%clk 0:00:04.7]} 56. Rxa5 {[%clk 0:00:18.7]} 56... Rb6
{[%clk 0:00:05]} 57. Ra7+ {[%clk 0:00:17.8]} 57... Ke6 {[%clk 0:00:05.6]} 58.
Ra6 {[%clk 0:00:18.1]} 58... Rxa6 {[%clk 0:00:03.4]} 59. bxa6 {[%clk 0:00:19]}
59... Kd6 {[%clk 0:00:04.2]} 60. a7 {[%clk 0:00:18.9]} 60... Ra8 {[%clk
0:00:04.9]} 61. Ra4 {[%clk 0:00:19.1]} 61... Kc6 {[%clk 0:00:05.6]} 62. Ra6+
{[%clk 0:00:19.7]} 62... Kb5 {[%clk 0:00:04.8]} 63. Rxf6 {[%clk 0:00:20]} 63...
Rxa7 {[%clk 0:00:05.4]} 64. Re6 {[%clk 0:00:20.3]} 64... Ra3 {[%clk 0:00:05.8]}
65. Rxe5 {[%clk 0:00:20]} 65... Kb4 {[%clk 0:00:06.7]} 66. Re8 {[%clk
0:00:17.5]} 66... c4 {[%clk 0:00:07]} 67. Rb8+ {[%clk 0:00:18.2]} 67... Kc3
{[%clk 0:00:06.3]} 68. Rc8 {[%clk 0:00:17.7]} 1-0

[Event "Early-Titled-Tuesday-Blitz-May-14-2024"]
[Site "Chess.com"]
[Date "2024.05.14"]
[Round "3"]
[White "SilverSwords13"]
[Black "littlepinkyboy"]
[Result "0-1"]
[WhiteElo "2476"]
[BlackElo "2675"]
[TimeControl "180+1"]
[EndTime "8:30:44 PDT"]
[Termination "littlepinkyboy won by resignation"]

1. e4 {[%clk 0:02:54.2]} 1... c5 {[%clk 0:02:59.9]} 2. Nf3 {[%clk 0:02:53.3]}
2... e6 {[%clk 0:02:58.2]} 3. d4 {[%clk 0:02:52.2]} 3... cxd4 {[%clk 0:02:59.1]}
4. Nxd4 {[%clk 0:02:53.1]} 4... Nc6 {[%clk 0:02:59.5]} 5. Nc3 {[%clk 0:02:50.4]}
5... Qc7 {[%clk 0:03:00]} 6. Be3 {[%clk 0:02:49.8]} 6... Nf6 {[%clk 0:03:00.6]}
7. f3 {[%clk 0:02:30.2]} 7... a6 {[%clk 0:02:53.1]} 8. Qd2 {[%clk 0:02:28.4]}
8... b5 {[%clk 0:02:49.4]} 9. O-O-O {[%clk 0:02:26.1]} 9... Bb7 {[%clk 0:02:50]}
10. g4 {[%clk 0:02:25.2]} 10... Ne5 {[%clk 0:02:36]} 11. g5 {[%clk 0:02:18]}
11... b4 {[%clk 0:02:18.6]} 12. Nce2 {[%clk 0:02:15.1]} 12... Nh5 {[%clk
0:02:04.2]} 13. Ng3 {[%clk 0:01:55.9]} 13... Nxg3 {[%clk 0:01:56]} 14. hxg3
{[%clk 0:01:56.8]} 14... Bc5 {[%clk 0:01:56.5]} 15. Kb1 {[%clk 0:01:42.8]} 15...
Rc8 {[%clk 0:01:51]} 16. Be2 {[%clk 0:01:21.5]} 16... d5 {[%clk 0:01:41.4]} 17.
f4 {[%clk 0:01:09.3]} 17... Nc4 {[%clk 0:01:37.2]} 18. Bxc4 {[%clk 0:01:09.3]}
18... dxc4 {[%clk 0:01:38.1]} 19. g6 {[%clk 0:00:50.3]} 19... Bxe4 {[%clk
0:01:30]} 20. Rxh7 {[%clk 0:00:42.8]} 20... Rxh7 {[%clk 0:01:26.9]} 21. gxh7
{[%clk 0:00:43.7]} 21... Bxh7 {[%clk 0:01:26.4]} 22. Rh1 {[%clk 0:00:42]} 22...
Be4 {[%clk 0:01:16.9]} 23. Rh8+ {[%clk 0:00:40.3]} 23... Ke7 {[%clk 0:01:15.8]}
24. Rh5 {[%clk 0:00:31]} 24... c3 {[%clk 0:00:54.8]} 25. bxc3 {[%clk 0:00:27.6]}
25... bxc3 {[%clk 0:00:53.6]} 26. Qxc3 {[%clk 0:00:18]} 26... Bxd4 {[%clk
0:00:38.9]} 27. Qb4+ {[%clk 0:00:10.9]} 27... Qd6 {[%clk 0:00:35.8]} 28. Qxd6+
{[%clk 0:00:03.4]} 28... Kxd6 {[%clk 0:00:36.7]} 29. Bxd4 {[%clk 0:00:04.3]}
29... Rxc2 {[%clk 0:00:37.3]} 30. Re5 {[%clk 0:00:02.1]} 30... Re2+ {[%clk
0:00:28.9]} 31. Kc1 {[%clk 0:00:01.6]} 31... f6 {[%clk 0:00:29.8]} 32. Ra5
{[%clk 0:00:01.5]} 32... Bd3 {[%clk 0:00:25.5]} 33. Bc5+ {[%clk 0:00:01.9]}
33... Kc6 {[%clk 0:00:24.4]} 34. Bf8 {[%clk 0:00:02.3]} 34... Rc2+ {[%clk
0:00:15.2]} 35. Kd1 {[%clk 0:00:02.5]} 35... g6 {[%clk 0:00:12.9]} 36. Bg7
{[%clk 0:00:02.9]} 36... f5 {[%clk 0:00:12.1]} 37. Be5 {[%clk 0:00:02.9]} 37...
Rg2 {[%clk 0:00:10.1]} 38. Ra3 {[%clk 0:00:03.5]} 38... Bc4 {[%clk 0:00:05.1]}
39. Rc3 {[%clk 0:00:02.9]} 39... Kd5 {[%clk 0:00:05.8]} 40. a3 {[%clk
0:00:01.8]} 40... a5 {[%clk 0:00:06.1]} 41. Kc1 {[%clk 0:00:02.3]} 41... a4
{[%clk 0:00:06.3]} 42. Kd1 {[%clk 0:00:02.8]} 42... Bb3+ {[%clk 0:00:05.9]} 43.
Ke1 {[%clk 0:00:03]} 43... Bc4 {[%clk 0:00:06.5]} 44. Kd1 {[%clk 0:00:03.2]}
44... Rg1+ {[%clk 0:00:04.7]} 45. Kd2 {[%clk 0:00:03.3]} 45... Rb1 {[%clk
0:00:05.2]} 46. Bf6 {[%clk 0:00:03.1]} 46... Rb2+ {[%clk 0:00:05.1]} 47. Kc1
{[%clk 0:00:03]} 47... Rf2 {[%clk 0:00:03.6]} 48. Kd1 {[%clk 0:00:03]} 48...
Bb3+ {[%clk 0:00:03.7]} 49. Ke1 {[%clk 0:00:03.2]} 49... Ra2 {[%clk 0:00:04.4]}
50. Be7 {[%clk 0:00:03.5]} 50... Ke4 {[%clk 0:00:05.1]} 51. Kf1 {[%clk
0:00:03.4]} 51... Bd5 {[%clk 0:00:04.4]} 52. Ke1 {[%clk 0:00:03.6]} 52... Rb2
{[%clk 0:00:04.1]} 53. Bc5 {[%clk 0:00:03.6]} 53... Rb3 {[%clk 0:00:02.5]} 54.
Rxb3 {[%clk 0:00:01.9]} 54... axb3 {[%clk 0:00:03.4]} 55. Ke2 {[%clk 0:00:02]}
55... b2 {[%clk 0:00:02.2]} 56. Bd4 {[%clk 0:00:02.6]} 56... b1=Q {[%clk
0:00:02.4]} 57. Bb2 {[%clk 0:00:03.1]} 57... Qd3+ {[%clk 0:00:03.3]} 0-1

[Event "Early-Titled-Tuesday-Blitz-May-14-2024"]
[Site "Chess.com"]
[Date "2024.05.14"]
[Round "3"]
[White "js20000"]
[Black "ChristopherYoo"]
[Result "1-0"]
[WhiteElo "2758"]
[BlackElo "2990"]
[TimeControl "180+1"]
[EndTime "8:30:48 PDT"]
[Termination "js20000 won on time"]

1. b3 {[%clk 0:03:00.9]} 1... b6 {[%clk 0:02:54.2]} 2. g3 {[%clk 0:02:59]} 2...
Bb7 {[%clk 0:02:54.2]} 3. Nf3 {[%clk 0:02:59]} 3... Nf6 {[%clk 0:02:45.1]} 4.
Bg2 {[%clk 0:02:58.4]} 4... g6 {[%clk 0:02:43.9]} 5. c4 {[%clk 0:02:57.2]} 5...
c5 {[%clk 0:02:41.9]} 6. O-O {[%clk 0:02:55.3]} 6... Bg7 {[%clk 0:02:41.2]} 7.
Bb2 {[%clk 0:02:55.9]} 7... O-O {[%clk 0:02:41.1]} 8. d4 {[%clk 0:02:56.1]} 8...
cxd4 {[%clk 0:02:40.8]} 9. Qxd4 {[%clk 0:02:56.8]} 9... d6 {[%clk 0:02:23]} 10.
Rd1 {[%clk 0:02:53.3]} 10... Nbd7 {[%clk 0:02:22.1]} 11. Nc3 {[%clk 0:02:39.7]}
11... Rc8 {[%clk 0:02:16.8]} 12. Rac1 {[%clk 0:02:36.3]} 12... Ne4 {[%clk
0:02:11.3]} 13. Qe3 {[%clk 0:02:33.3]} 13... Nxc3 {[%clk 0:02:11]} 14. Bxc3
{[%clk 0:02:32.5]} 14... Bxc3 {[%clk 0:02:11.7]} 15. Rxc3 {[%clk 0:02:31.7]}
15... Nf6 {[%clk 0:02:11.1]} 16. Rcd3 {[%clk 0:02:26.8]} 16... Rc5 {[%clk
0:02:03.7]} 17. Nd4 {[%clk 0:01:56.9]} 17... Bxg2 {[%clk 0:02:01.6]} 18. Kxg2
{[%clk 0:01:57.5]} 18... Qd7 {[%clk 0:02:02.2]} 19. h3 {[%clk 0:01:50.5]} 19...
Rfc8 {[%clk 0:01:49.5]} 20. Nf3 {[%clk 0:01:39.9]} 20... Qb7 {[%clk 0:01:47.3]}
21. a4 {[%clk 0:01:22.2]} 21... a6 {[%clk 0:01:40.5]} 22. Kg1 {[%clk 0:01:08.4]}
22... b5 {[%clk 0:01:32.8]} 23. cxb5 {[%clk 0:01:01.6]} 23... axb5 {[%clk
0:01:31.3]} 24. axb5 {[%clk 0:00:55.2]} 24... Rxb5 {[%clk 0:01:29.9]} 25. Nd4
{[%clk 0:00:55.5]} 25... Rbc5 {[%clk 0:01:25.7]} 26. b4 {[%clk 0:00:47.8]} 26...
Re5 {[%clk 0:01:23.4]} 27. Qf3 {[%clk 0:00:41.3]} 27... Qxb4 {[%clk 0:01:05.3]}
28. Nc6 {[%clk 0:00:41]} 28... Rxc6 {[%clk 0:01:05.6]} 29. Qxc6 {[%clk
0:00:41.1]} 29... Rxe2 {[%clk 0:01:06.3]} 30. Qf3 {[%clk 0:00:38.6]} 30... Re5
{[%clk 0:01:05.3]} 31. Re3 {[%clk 0:00:36.8]} 31... Qc5 {[%clk 0:01:04.9]} 32.
Rde1 {[%clk 0:00:33.7]} 32... Rxe3 {[%clk 0:00:58.9]} 33. Qxe3 {[%clk
0:00:34.6]} 33... Qxe3 {[%clk 0:00:56.8]} 34. Rxe3 {[%clk 0:00:34.9]} 34... Kf8
{[%clk 0:00:55.8]} 35. Kg2 {[%clk 0:00:33.8]} 35... d5 {[%clk 0:00:55.7]} 36. g4
{[%clk 0:00:33.6]} 36... e6 {[%clk 0:00:55.4]} 37. Ra3 {[%clk 0:00:32]} 37...
Ke7 {[%clk 0:00:54.2]} 38. Ra7+ {[%clk 0:00:31.7]} 38... Nd7 {[%clk 0:00:54.4]}
39. Kf3 {[%clk 0:00:31.8]} 39... e5 {[%clk 0:00:53]} 40. g5 {[%clk 0:00:26.2]}
40... Ke6 {[%clk 0:00:43.2]} 41. Ra6+ {[%clk 0:00:23.9]} 41... Ke7 {[%clk
0:00:35]} 42. Ra7 {[%clk 0:00:19.9]} 42... e4+ {[%clk 0:00:32.5]} 43. Kf4 {[%clk
0:00:19.3]} 43... Kd6 {[%clk 0:00:31.6]} 44. Ra6+ {[%clk 0:00:18.7]} 44... Kc5
{[%clk 0:00:32.2]} 45. Ra7 {[%clk 0:00:18.6]} 45... Kc6 {[%clk 0:00:31.5]} 46.
Ra6+ {[%clk 0:00:18.2]} 46... Kc5 {[%clk 0:00:22.8]} 47. Ra7 {[%clk 0:00:18]}
47... Kd6 {[%clk 0:00:23.5]} 48. Ra6+ {[%clk 0:00:17.9]} 48... Ke7 {[%clk
0:00:24.2]} 49. Ra7 {[%clk 0:00:17.7]} 49... Ke6 {[%clk 0:00:13.7]} 50. Ra6+
{[%clk 0:00:16.8]} 50... Ke7 {[%clk 0:00:14.4]} 51. Ke3 {[%clk 0:00:15.5]} 51...
Nc5 {[%clk 0:00:12.9]} 52. Ra7+ {[%clk 0:00:14.3]} 52... Ke6 {[%clk 0:00:13.1]}
53. Kd4 {[%clk 0:00:14.1]} 53... Nb3+ {[%clk 0:00:13]} 54. Kc3 {[%clk
0:00:14.1]} 54... Nc1 {[%clk 0:00:12.9]} 55. Ra6+ {[%clk 0:00:12.7]} 55... Ke5
{[%clk 0:00:12.5]} 56. Rf6 {[%clk 0:00:12.9]} 56... d4+ {[%clk 0:00:12.4]} 57.
Kc2 {[%clk 0:00:12.3]} 57... Ne2 {[%clk 0:00:12]} 58. Rxf7 {[%clk 0:00:12.7]}
58... d3+ {[%clk 0:00:12.4]} 59. Kd2 {[%clk 0:00:12.8]} 59... Nd4 {[%clk
0:00:12.3]} 60. Re7+ {[%clk 0:00:12.7]} 60... Kf4 {[%clk 0:00:12.2]} 61. Rxh7
{[%clk 0:00:12.3]} 61... Nf3+ {[%clk 0:00:12.4]} 62. Kc3 {[%clk 0:00:12.5]}
62... Nxg5 {[%clk 0:00:12.4]} 63. Re7 {[%clk 0:00:11.6]} 63... Nxh3 {[%clk
0:00:11.6]} 64. Rf7+ {[%clk 0:00:11.6]} 64... Ke5 {[%clk 0:00:10.7]} 65. Kd2
{[%clk 0:00:10.6]} 65... Ng5 {[%clk 0:00:10.3]} 66. Rf8 {[%clk 0:00:09.8]} 66...
Nf3+ {[%clk 0:00:09.6]} 67. Ke3 {[%clk 0:00:09.9]} 67... d2 {[%clk 0:00:02.4]}
68. Re8+ {[%clk 0:00:08.9]} 68... Kf5 {[%clk 0:00:02.3]} 69. Rd8 {[%clk
0:00:09.3]} 69... g5 {[%clk 0:00:02.3]} 70. Rd5+ {[%clk 0:00:08.7]} 1-0